fUSD/lending_fUSD_20250322
["ID","MTS","AMOUNT","RATE_DAILY","PERIOD"]
[356552992,1742649057093,-448.5206862,0.00047945,120]
[356552993,1742649057102,-500.0,0.00047945,120]
[356552994,1742649057111,-1943.9,0.00047945,120]
[356552995,1742649057121,-500.0,0.00047945,120]
[356552996,1742649057130,-668.58,0.00047945,120]
[356552997,1742649057139,-820.35,0.00047945,120]
[356552998,1742649057149,-500.0,0.00047945,120]
[356552999,1742649057159,-1000.0,0.00047999,120]
[356553000,1742649057168,-50000.0,0.00048,48]
[356553001,1742649057177,-11776.43118902,0.00048,15]
[356553002,1742649057186,-500.0,0.00048219,10]
[356553003,1742649057196,-500.0,0.00048219,120]
[356553004,1742649057205,-500.0,0.00048219,120]
[356553005,1742649057215,-500.0,0.00048219,120]
[356553006,1742649057224,-500.0,0.00048219,120]
[356553007,1742649057234,-551.51,0.00048219,120]
[356553008,1742649057243,-407.69147,0.00048219,120]
[356553009,1742649057252,-500.0,0.00048219,120]
[356553010,1742649057262,-500.0,0.00048219,120]
[356553011,1742649057271,-502.65889,0.00048219,120]
[356553012,1742649057280,-537.26,0.00048219,120]
[356553013,1742649057289,-368.98,0.00048219,120]
[356553014,1742649057298,-503.63,0.00048219,120]
[356553015,1742649057308,-500.0,0.00048219,120]
[356553016,1742649057318,-500.0,0.00048219,120]
[356553017,1742649057327,-500.0,0.00048219,120]
[356553018,1742649057337,-500.0,0.00048219,120]
[356553019,1742649057347,-500.0,0.00048219,120]
[356553020,1742649057357,-500.0,0.00048219,120]
[356553021,1742649057367,-500.0,0.00048219,120]
[356553022,1742649057376,-500.0,0.00048219,120]
[356553023,1742649057387,-500.0,0.00048219,120]
[356553024,1742649057396,-500.0,0.00048219,120]
[356553025,1742649057406,-500.0,0.00048219,120]
[356553026,1742649057415,-2379.23,0.00048219,120]
[356553027,1742649057426,-500.0,0.00048219,120]
[356553028,1742649057436,-500.0,0.00048219,120]
[356553029,1742649057446,-500.0,0.00048219,120]
[356553030,1742649057456,-500.0,0.00048219,120]
[356553031,1742649057467,-500.0,0.00048219,120]
[356553032,1742649057476,-500.0,0.00048219,120]
[356553033,1742649057486,-500.0,0.00048219,120]
[356553034,1742649057496,-500.0,0.00048219,120]
[356553035,1742649057506,-500.0,0.00048219,120]
[356553036,1742649057515,-500.0,0.00048219,120]
[356553037,1742649057524,-500.0,0.00048219,120]
[356553038,1742649057534,-500.0,0.00048219,120]
[356553039,1742649057545,-500.0,0.00048219,120]
[356553040,1742649057554,-500.0,0.00048219,120]
[356553041,1742649057564,-500.0,0.00048219,120]
[356553042,1742649057574,-577.83317345,0.00048219,120]
[356553043,1742649057583,-500.0,0.00048219,120]
[356553044,1742649057593,-500.0,0.00048219,120]
[356553045,1742649057603,-500.0,0.00048219,120]
[356553046,1742649057614,-500.0,0.00048219,120]
[356553047,1742649057624,-500.0,0.00048219,120]
[356553048,1742649057634,-500.0,0.00048219,120]
[356553049,1742649057644,-500.0,0.00048219,120]
[356553050,1742649057655,-500.0,0.00048219,120]
[356553051,1742649057665,-500.0,0.00048219,120]
[356553052,1742649057674,-500.0,0.00048219,120]
[356553053,1742649057684,-500.0,0.00048219,120]
[356553054,1742649057693,-500.0,0.00048219,120]
[356553055,1742649057704,-825.45,0.00048219,120]
[356553056,1742649057716,-500.0,0.00048219,120]
[356553057,1742649057729,-548.93412472,0.00048219,120]
[356553058,1742649057739,-469.40367562,0.00048219,120]
[356553059,1742649057748,-500.0,0.00048219,60]
[356553060,1742649057757,-500.0,0.00048219,120]
[356553061,1742649057766,-500.0,0.00048219,2]
[356553062,1742649057776,-604.57,0.00048219,120]
[356553063,1742649057786,-1019.03,0.00048219,120]
[356553064,1742649057796,-500.0,0.00048219,120]
[356553065,1742649057808,-500.0,0.00048219,120]
[356553066,1742649057817,-500.0,0.00048219,120]
[356553067,1742649057827,-575.32,0.00048219,120]
[356553068,1742649057837,-500.0,0.00048219,120]
[356553069,1742649057847,-500.0,0.00048219,120]
[356553070,1742649057856,-517.96,0.00048219,120]
[356553071,1742649057866,-500.0,0.00048219,120]
[356553072,1742649057876,-500.0,0.00048219,120]
[356553073,1742649057886,-500.0,0.00048219,120]
[356553074,1742649057896,-500.0,0.00048219,120]
[356553075,1742649057906,-536.98,0.00048219,120]
[356553076,1742649057915,-500.0,0.00048219,120]
[356553077,1742649057926,-500.0,0.00048219,120]
[356553078,1742649057936,-500.0,0.00048219,120]
[356553079,1742649057947,-500.0,0.00048219,120]
[356553080,1742649057956,-500.0,0.00048219,120]
[356553081,1742649057965,-1229.96,0.00048219,120]
[356553082,1742649057975,-500.0,0.00048219,120]
[356553083,1742649057984,-688.86,0.00048219,120]
[356553084,1742649057994,-500.0,0.00048219,120]
[356553085,1742649058003,-500.0,0.00048219,100]
[356553086,1742649058014,-168.02535138,0.00048219,120]
[356553087,1742649058024,-500.0,0.00048219,120]
[356553088,1742649058034,-500.0,0.00048219,120]
[356553089,1742649058044,-500.0,0.00048219,120]
[356553090,1742649058053,-924.8,0.00048219,120]
[356553091,1742649058063,-500.0,0.00048219,120]
[356553092,1742649058073,-795.72,0.00048219,120]
[356553093,1742649058083,-500.0,0.00048219,120]
[356553094,1742649058091,-500.0,0.00048219,120]
[356553095,1742649058101,-500.0,0.00048219,120]
[356553096,1742649058111,-578.9,0.00048219,120]
[356553097,1742649058120,-500.0,0.00048219,120]
[356553098,1742649058130,-482.41566302,0.00048219,120]
[356553099,1742649058139,-500.0,0.00048219,120]
[356553100,1742649058148,-500.0,0.00048219,120]
[356553101,1742649058157,-500.0,0.00048219,120]
[356553102,1742649058166,-608.98868201,0.00048219,120]
[356553103,1742649058176,-500.0,0.00048219,120]
[356553104,1742649058185,-14463.29,0.00048219,120]
[356553105,1742649058194,-500.0,0.00048219,7]
[356553106,1742649058204,-500.0,0.00048219,120]
[356553107,1742649058213,-500.0,0.00048219,120]
[356553108,1742649058223,-500.0,0.00048219,120]
[356553109,1742649058232,-500.0,0.00048219,120]
[356553110,1742649058241,-1080.15,0.00048219,120]
[356553111,1742649058250,-500.0,0.00048219,120]
[356553112,1742649058260,-500.0,0.00048219,120]
[356553113,1742649058270,-1312.28,0.00048219,120]
[356553114,1742649058280,-500.0,0.00048219,120]
[356553115,1742649058290,-320.77928187,0.00048219,120]
[356553116,1742649058300,-500.0,0.00048219,120]
[356553117,1742649058432,-517.64,0.00048219,120]
[356553118,1742649058443,-500.0,0.00048219,120]
[356553119,1742649058452,-500.0,0.00048219,120]
[356553120,1742649058461,-500.0,0.00048219,120]
[356553121,1742649058470,-597.79,0.00048219,120]
[356553122,1742649058479,-500.0,0.00048219,120]
[356553123,1742649058489,-500.0,0.00048219,120]
[356553124,1742649058499,-500.0,0.00048219,120]
[356553125,1742649058508,-500.0,0.00048219,120]
[356553126,1742649058517,-349.88777052,0.00048219,120]
[356553127,1742649058526,-1657.09,0.00048219,120]
[356553128,1742649058535,-500.0,0.00048219,120]
[356553129,1742649058544,-500.0,0.00048219,120]
[356553130,1742649058554,-500.0,0.00048219,120]
[356553131,1742649058564,-583.21275916,0.00048219,120]
[356553132,1742649058573,-500.0,0.00048219,120]
[356553133,1742649058582,-1270.91,0.00048219,120]
[356553134,1742649058591,-766.24,0.00048219,120]
[356553135,1742649058600,-500.0,0.00048219,120]
[356553136,1742649058609,-500.0,0.00048219,120]
[356553137,1742649058619,-500.0,0.00048219,120]
[356553138,1742649058628,-817.98,0.00048219,120]
[356553139,1742649058637,-504.5,0.00048219,120]
[356553140,1742649058647,-500.0,0.00048219,120]
[356553141,1742649058656,-500.0,0.00048219,120]
[356553142,1742649058666,-500.0,0.00048219,120]
[356553143,1742649058675,-500.0,0.00048219,7]
[356553144,1742649058684,-560.93,0.00048219,120]
[356553145,1742649058693,-835.34,0.00048219,120]
[356553146,1742649058703,-500.0,0.00048219,120]
[356553147,1742649058712,-547.63,0.00048219,120]
[356553148,1742649058721,-500.0,0.00048219,120]
[356553149,1742649058734,-500.0,0.00048219,120]
[356553150,1742649058743,-500.0,0.00048219,120]
[356553151,1742649058753,-1029.56,0.00048219,2]
[356553152,1742649058765,-500.0,0.00048219,120]
[356553153,1742649058775,-1943.9,0.00048219,120]
[356553154,1742649058784,-500.0,0.00048219,120]
[356553155,1742649058794,-668.58,0.00048219,120]
[356553156,1742649058805,-820.35,0.00048219,120]
[356553157,1742649058815,-500.0,0.00048219,120]
[356553158,1742649058825,-466.18,0.00048476,2]
[356553159,1742649058837,-1000.0,0.0004848,2]
[356553160,1742649058846,-500.0,0.00048493,10]
[356553161,1742649058856,-275.00704834,0.00048493,120]
[356553162,1742649058866,-500.0,0.00048493,120]
[356553163,1742649058876,-500.0,0.00048493,120]
[356553164,1742649058886,-500.0,0.00048493,120]
[356553165,1742649058896,-551.51,0.00048493,120]
[356553166,1742649058905,-264.08964257,0.00048493,120]
[356553167,1742649058916,-500.0,0.00048493,120]
[356553168,1742649058925,-537.26,0.00048493,120]
[356553169,1742649058935,-503.63,0.00048493,120]
[356553170,1742649058945,-500.0,0.00048493,120]
[356553171,1742649058955,-196.60574351,0.00048493,120]
[356553172,1742649058964,-500.0,0.00048493,120]
[356553173,1742649058974,-500.0,0.00048493,120]
[356553174,1742649058984,-500.0,0.00048493,120]
[356553175,1742649058994,-500.0,0.00048493,120]
[356553176,1742649059004,-500.0,0.00048493,120]
[356553177,1742649059015,-400.19261919,0.00048493,120]
[356553178,1742649059024,-500.0,0.00048493,120]
[356553179,1742649059033,-500.0,0.00048493,120]
[356553180,1742649059043,-500.0,0.00048493,120]
[356553181,1742649059052,-2379.23,0.00048493,120]
[356553182,1742649059062,-622.41562191,0.00048493,120]
[356553183,1742649059071,-500.0,0.00048493,120]
[356553184,1742649059081,-561.39458374,0.00048493,120]
[356553185,1742649059091,-500.0,0.00048493,120]
[356553186,1742649059102,-500.0,0.00048493,120]
[356553187,1742649059112,-500.0,0.00048493,120]
[356553188,1742649059123,-378.82300082,0.00048493,120]
[356553189,1742649059135,-500.0,0.00048493,120]
[356553190,1742649059146,-500.0,0.00048493,120]
[356553191,1742649059156,-500.0,0.00048493,120]
[356553192,1742649059166,-500.0,0.00048493,120]
[356553193,1742649059176,-502.80017226,0.00048493,120]
[356553194,1742649059186,-500.0,0.00048493,120]
[356553195,1742649059196,-620.12284789,0.00048493,120]
[356553196,1742649059206,-500.0,0.00048493,120]
[356553197,1742649059217,-500.0,0.00048493,120]
[356553198,1742649059227,-500.0,0.00048493,120]
[356553199,1742649059237,-500.0,0.00048493,120]
[356553200,1742649059246,-500.0,0.00048493,120]
[356553201,1742649059255,-500.0,0.00048493,120]
[356553202,1742649059264,-426.30888246,0.00048493,120]
[356553203,1742649059274,-500.0,0.00048493,120]
[356553204,1742649059283,-500.0,0.00048493,120]
[356553205,1742649059293,-500.0,0.00048493,120]
[356553206,1742649059302,-500.0,0.00048493,120]
[356553207,1742649059312,-500.0,0.00048493,120]
[356553208,1742649059321,-500.0,0.00048493,120]
[356553209,1742649059332,-825.45,0.00048493,120]
[356553210,1742649059342,-500.0,0.00048493,120]
[356553211,1742649059352,-500.0,0.00048493,60]
[356553212,1742649059362,-500.0,0.00048493,120]
[356553213,1742649059371,-500.0,0.00048493,2]
[356553214,1742649059381,-604.57,0.00048493,120]
[356553215,1742649059391,-1019.03,0.00048493,120]
[356553216,1742649059400,-500.0,0.00048493,120]
[356553217,1742649059410,-500.0,0.00048493,120]
[356553218,1742649059421,-500.0,0.00048493,120]
[356553219,1742649059432,-575.32,0.00048493,120]
[356553220,1742649059442,-500.0,0.00048493,120]
[356553221,1742649059453,-500.0,0.00048493,120]
[356553222,1742649059462,-517.96,0.00048493,120]
[356553223,1742649059471,-500.0,0.00048493,120]
[356553224,1742649059481,-500.0,0.00048493,120]
[356553225,1742649059491,-500.0,0.00048493,120]
[356553226,1742649059501,-500.0,0.00048493,120]
[356553227,1742649059511,-536.98,0.00048493,120]
[356553228,1742649059521,-500.0,0.00048493,120]
[356553229,1742649059532,-500.0,0.00048493,120]
[356553230,1742649059543,-500.0,0.00048493,120]
[356553231,1742649059552,-500.0,0.00048493,120]
[356553232,1742649059562,-500.0,0.00048493,120]
[356553233,1742649059571,-1229.96,0.00048493,120]
[356553234,1742649059581,-500.0,0.00048493,120]
[356553235,1742649059590,-688.86,0.00048493,120]
[356553236,1742649059599,-229.66329682,0.00048493,120]
[356553237,1742649059608,-500.0,0.00048493,100]
[356553238,1742649059617,-500.0,0.00048493,120]
[356553239,1742649059627,-500.0,0.00048493,120]
[356553240,1742649059636,-500.0,0.00048493,120]
[356553241,1742649059645,-924.8,0.00048493,120]
[356553242,1742649059655,-500.0,0.00048493,120]
[356553243,1742649059667,-795.72,0.00048493,120]
[356553244,1742649059676,-399.05323949,0.00048493,120]
[356553245,1742649059688,-500.0,0.00048493,120]
[356553246,1742649059699,-262.86238622,0.00048493,120]
[356553247,1742649059710,-578.9,0.00048493,120]
[356553248,1742649059720,-500.0,0.00048493,120]
[356553249,1742649059733,-321.91405666,0.00048493,120]
[356553250,1742649059744,-500.0,0.00048493,120]
[356553251,1742649059753,-500.0,0.00048493,120]
[356553252,1742649059762,-500.0,0.00048493,120]
[356553253,1742649059773,-14463.29,0.00048493,120]
[356553254,1742649059782,-500.0,0.00048493,7]
[356553255,1742649059792,-500.0,0.00048493,120]
[356553256,1742649059802,-500.0,0.00048493,120]
[356553257,1742649059813,-500.0,0.00048493,120]
[356553258,1742649059822,-500.0,0.00048493,120]
[356553259,1742649059832,-1080.15,0.00048493,120]
[356553260,1742649059842,-500.0,0.00048493,120]
[356553261,1742649059853,-500.0,0.00048493,120]
[356553262,1742649059863,-1312.28,0.00048493,120]
[356553263,1742649059873,-500.0,0.00048493,120]
[356553264,1742649059883,-500.0,0.00048493,120]
[356553265,1742649059892,-517.64,0.00048493,120]
[356553266,1742649059904,-500.0,0.00048493,120]
[356553267,1742649059915,-500.0,0.00048493,120]
[356553268,1742649059924,-500.0,0.00048493,120]
[356553269,1742649059934,-597.79,0.00048493,120]
[356553270,1742649059945,-500.0,0.00048493,120]
[356553271,1742649059956,-500.0,0.00048493,120]
[356553272,1742649059967,-500.0,0.00048493,120]
[356553273,1742649059978,-500.0,0.00048493,120]
[356553274,1742649059987,-1657.09,0.00048493,120]
[356553275,1742649059996,-500.0,0.00048493,120]
[356553276,1742649060006,-500.0,0.00048493,120]
[356553277,1742649060016,-500.0,0.00048493,120]
[356553278,1742649060025,-500.0,0.00048493,120]
[356553279,1742649060035,-1270.91,0.00048493,120]
[356553280,1742649060045,-766.24,0.00048493,120]
[356553281,1742649060054,-500.0,0.00048493,120]
[356553282,1742649060064,-500.0,0.00048493,120]
[356553283,1742649060074,-500.0,0.00048493,120]
[356553284,1742649060084,-817.98,0.00048493,120]
[356553285,1742649060093,-504.5,0.00048493,120]
[356553286,1742649060103,-500.0,0.00048493,120]
[356553287,1742649060112,-554.31076396,0.00048493,120]
[356553288,1742649060121,-500.0,0.00048493,120]
[356553289,1742649060131,-500.0,0.00048493,7]
[356553290,1742649060141,-560.93,0.00048493,120]
[356553291,1742649060150,-835.34,0.00048493,120]
[356553292,1742649060160,-500.0,0.00048493,120]
[356553293,1742649060169,-547.63,0.00048493,120]
[356553294,1742649060178,-500.0,0.00048493,120]
[356553295,1742649060188,-500.0,0.00048493,120]
[356553296,1742649060197,-500.0,0.00048493,120]
[356553297,1742649060207,-1029.56,0.00048493,2]
[356553298,1742649060216,-500.0,0.00048493,120]
[356553299,1742649060225,-1943.9,0.00048493,120]
[356553300,1742649060234,-165.17115165,0.00048493,120]
[356553301,1742649060244,-668.58,0.00048493,120]
[356553302,1742649060255,-820.35,0.00048493,120]
[356553303,1742649060265,-500.0,0.00048493,120]
[356553304,1742649060274,-11776.43118902,0.00048633,15]
[356553305,1742649060284,-371.56,0.00048754,120]
[356553306,1742649060293,-500.0,0.00048767,10]
[356553307,1742649060302,-491.72618971,0.00048767,120]
[356553308,1742649060311,-500.0,0.00048767,120]
[356553309,1742649060321,-152.4848164,0.00048767,120]
[356553310,1742649060330,-551.51,0.00048767,120]
[356553311,1742649060340,-397.61933131,0.00048767,120]
[356553312,1742649060350,-537.26,0.00048767,120]
[356553313,1742649060361,-503.63,0.00048767,120]
[356553314,1742649060373,-500.0,0.00048767,120]
[356553315,1742649060384,-332.0357101,0.00048767,120]
[356553316,1742649060394,-500.0,0.00048767,120]
[356553317,1742649060404,-500.0,0.00048767,120]
[356553318,1742649060413,-500.0,0.00048767,120]
[356553319,1742649060423,-500.0,0.00048767,120]
[356553320,1742649060432,-500.0,0.00048767,120]
[356553321,1742649060442,-208.81663727,0.00048767,120]
[356553322,1742649060451,-500.0,0.00048767,120]
[356553323,1742649060461,-2379.23,0.00048767,120]
[356553324,1742649060470,-500.0,0.00048767,120]
[356553325,1742649060479,-500.0,0.00048767,120]
[356553326,1742649060488,-500.0,0.00048767,120]
[356553327,1742649060498,-500.0,0.00048767,120]
[356553328,1742649060508,-500.0,0.00048767,120]
[356553329,1742649060517,-500.0,0.00048767,120]
[356553330,1742649060527,-500.0,0.00048767,120]
[356553331,1742649060536,-361.30461522,0.00048767,120]
[356553332,1742649060546,-500.0,0.00048767,120]
[356553333,1742649060556,-500.0,0.00048767,120]
[356553334,1742649060566,-500.0,0.00048767,120]
[356553335,1742649060576,-500.0,0.00048767,120]
[356553336,1742649060585,-500.0,0.00048767,120]
[356553337,1742649060594,-500.0,0.00048767,120]
[356553338,1742649060604,-500.0,0.00048767,120]
[356553339,1742649060613,-500.0,0.00048767,120]
[356553340,1742649060622,-500.0,0.00048767,120]
[356553341,1742649060631,-355.43651999,0.00048767,120]
[356553342,1742649060640,-500.0,0.00048767,120]
[356553343,1742649060649,-428.13915281,0.00048767,120]
[356553344,1742649060658,-459.15297291,0.00048767,120]
[356553345,1742649060667,-825.45,0.00048767,120]
[356553346,1742649060677,-401.01247628,0.00048767,120]
[356553347,1742649060689,-500.0,0.00048767,60]
[356553348,1742649060698,-500.0,0.00048767,120]
[356553349,1742649060707,-500.0,0.00048767,2]
[356553350,1742649060716,-604.57,0.00048767,120]
[356553351,1742649060729,-1019.03,0.00048767,120]
[356553352,1742649060739,-500.0,0.00048767,120]
[356553353,1742649060748,-500.0,0.00048767,120]
[356553354,1742649060758,-500.0,0.00048767,120]
[356553355,1742649060768,-575.32,0.00048767,120]
[356553356,1742649060777,-500.0,0.00048767,120]
[356553357,1742649060786,-320.31462833,0.00048767,120]
[356553358,1742649060796,-517.96,0.00048767,120]
[356553359,1742649060807,-500.0,0.00048767,120]
[356553360,1742649060816,-500.0,0.00048767,120]
[356553361,1742649060826,-500.0,0.00048767,120]
[356553362,1742649060835,-500.0,0.00048767,120]
[356553363,1742649060845,-536.98,0.00048767,120]
[356553364,1742649060855,-500.0,0.00048767,120]
[356553365,1742649060865,-500.0,0.00048767,120]
[356553366,1742649060874,-296.73136699,0.00048767,120]
[356553367,1742649060883,-500.0,0.00048767,120]
[356553368,1742649060893,-500.0,0.00048767,120]
[356553369,1742649060902,-1229.96,0.00048767,120]
[356553370,1742649060912,-500.0,0.00048767,120]
[356553371,1742649060921,-688.86,0.00048767,120]
[356553372,1742649060931,-500.0,0.00048767,100]
[356553373,1742649060940,-500.0,0.00048767,120]
[356553374,1742649060949,-500.0,0.00048767,120]
[356553375,1742649060959,-500.0,0.00048767,120]
[356553376,1742649060968,-924.8,0.00048767,120]
[356553377,1742649060978,-500.0,0.00048767,120]
[356553378,1742649060987,-795.72,0.00048767,120]
[356553379,1742649060996,-500.0,0.00048767,120]
[356553380,1742649061007,-578.9,0.00048767,120]
[356553381,1742649061017,-500.0,0.00048767,120]
[356553382,1742649061027,-500.0,0.00048767,120]
[356553383,1742649061036,-500.0,0.00048767,120]
[356553384,1742649061046,-500.0,0.00048767,120]
[356553385,1742649061056,-14463.29,0.00048767,120]
[356553386,1742649061066,-500.0,0.00048767,7]
[356553387,1742649061076,-500.0,0.00048767,120]
[356553388,1742649061086,-500.0,0.00048767,120]
[356553389,1742649061095,-500.0,0.00048767,120]
[356553390,1742649061105,-500.0,0.00048767,120]
[356553391,1742649061115,-1080.15,0.00048767,120]
[356553392,1742649061124,-500.0,0.00048767,120]
[356553393,1742649061134,-500.0,0.00048767,120]
[356553394,1742649061144,-1312.28,0.00048767,120]
[356553395,1742649061155,-500.0,0.00048767,120]
[356553396,1742649061164,-592.80898786,0.00048767,120]
[356553397,1742649061174,-517.64,0.00048767,120]
[356553398,1742649061184,-500.0,0.00048767,120]
[356553399,1742649061194,-500.0,0.00048767,120]
[356553400,1742649061203,-500.0,0.00048767,120]
[356553401,1742649061212,-597.79,0.00048767,120]
[356553402,1742649061222,-500.0,0.00048767,120]
[356553403,1742649061232,-500.0,0.00048767,120]
[356553404,1742649061241,-500.0,0.00048767,120]
[356553405,1742649061250,-500.0,0.00048767,120]
[356553406,1742649061260,-1657.09,0.00048767,120]
[356553407,1742649061269,-500.0,0.00048767,120]
[356553408,1742649061278,-250.35005126,0.00048767,120]
[356553409,1742649061288,-500.0,0.00048767,120]
[356553410,1742649061297,-500.0,0.00048767,120]
[356553411,1742649061307,-1270.91,0.00048767,120]
[356553412,1742649061317,-766.24,0.00048767,120]
[356553413,1742649061327,-500.0,0.00048767,120]
[356553414,1742649061336,-179.8224335,0.00048767,120]
[356553415,1742649061346,-500.0,0.00048767,120]
[356553416,1742649061356,-817.98,0.00048767,120]
[356553417,1742649061366,-504.5,0.00048767,120]
[356553418,1742649061375,-500.0,0.00048767,120]
[356553419,1742649061385,-500.0,0.00048767,120]
[356553420,1742649061394,-500.0,0.00048767,7]
[356553421,1742649061404,-560.93,0.00048767,120]
[356553422,1742649061541,-835.34,0.00048767,120]
[356553423,1742649061552,-500.0,0.00048767,120]
[356553424,1742649061563,-547.63,0.00048767,120]
[356553425,1742649061573,-500.0,0.00048767,120]
[356553426,1742649061583,-500.0,0.00048767,120]
[356553427,1742649061593,-500.0,0.00048767,120]
[356553428,1742649061603,-1029.56,0.00048767,2]
[356553429,1742649061613,-500.0,0.00048767,120]
[356553430,1742649061622,-1943.9,0.00048767,120]
[356553431,1742649061632,-668.58,0.00048767,120]
[356553432,1742649061642,-820.35,0.00048767,120]
[356553433,1742649061651,-500.0,0.00048767,120]
[356553434,1742649061661,-3216.55148283,0.000488,120]
[356553435,1742649061670,-368.94,0.00048819,120]
[356553436,1742649061680,-151.1,0.00048877,2]
[356553437,1742649061689,-50000.0,0.00049,49]
[356553438,1742649061698,-500.0,0.00049041,10]
[356553439,1742649061708,-500.0,0.00049041,120]
[356553440,1742649061717,-551.51,0.00049041,120]
[356553441,1742649061729,-537.26,0.00049041,120]
[356553442,1742649061739,-503.63,0.00049041,120]
[356553443,1742649061748,-256.21696413,0.00049041,120]
[356553444,1742649061758,-500.0,0.00049041,120]
[356553445,1742649061768,-293.88773175,0.00049041,120]
[356553446,1742649061778,-500.0,0.00049041,120]
[356553447,1742649061788,-356.57712422,0.00049041,120]
[356553448,1742649061797,-474.96877413,0.00049041,120]
[356553449,1742649061806,-2379.23,0.00049041,120]
[356553450,1742649061818,-500.0,0.00049041,120]
[356553451,1742649061828,-500.0,0.00049041,120]
[356553452,1742649061837,-645.886128,0.00049041,120]
[356553453,1742649061847,-500.0,0.00049041,120]
[356553454,1742649061856,-500.0,0.00049041,120]
[356553455,1742649061866,-500.0,0.00049041,120]
[356553456,1742649061875,-402.17736183,0.00049041,120]
[356553457,1742649061885,-500.0,0.00049041,120]
[356553458,1742649061894,-279.56490027,0.00049041,120]
[356553459,1742649061904,-500.0,0.00049041,120]
[356553460,1742649061913,-500.0,0.00049041,120]
[356553461,1742649061923,-311.6205924,0.00049041,120]
[356553462,1742649061933,-500.0,0.00049041,120]
[356553463,1742649061943,-500.0,0.00049041,120]
[356553464,1742649061952,-155.81155028,0.00049041,120]
[356553465,1742649061962,-500.0,0.00049041,120]
[356553466,1742649061971,-500.0,0.00049041,120]
[356553467,1742649061981,-500.0,0.00049041,120]
[356553468,1742649061991,-825.45,0.00049041,120]
[356553469,1742649062001,-243.52065725,0.00049041,60]
[356553470,1742649062011,-197.56738035,0.00049041,120]
[356553471,1742649062020,-500.0,0.00049041,2]
[356553472,1742649062030,-604.57,0.00049041,120]
[356553473,1742649062040,-1019.03,0.00049041,120]
[356553474,1742649062049,-500.0,0.00049041,120]
[356553475,1742649062059,-500.0,0.00049041,120]
[356553476,1742649062069,-575.32,0.00049041,120]
[356553477,1742649062078,-500.0,0.00049041,120]
[356553478,1742649062088,-500.0,0.00049041,120]
[356553479,1742649062098,-517.96,0.00049041,120]
[356553480,1742649062107,-500.0,0.00049041,120]
[356553481,1742649062116,-500.0,0.00049041,120]
[356553482,1742649062127,-500.0,0.00049041,120]
[356553483,1742649062137,-500.0,0.00049041,120]
[356553484,1742649062147,-536.98,0.00049041,120]
[356553485,1742649062156,-500.0,0.00049041,120]
[356553486,1742649062166,-384.68548434,0.00049041,120]
[356553487,1742649062176,-500.0,0.00049041,120]
[356553488,1742649062185,-500.0,0.00049041,120]
[356553489,1742649062195,-1229.96,0.00049041,120]
[356553490,1742649062205,-500.0,0.00049041,120]
[356553491,1742649062214,-688.86,0.00049041,120]